[Event "45th FIDE Olympiad 2024"]
[Site "Budapest"]
[Date "2024.09.19"]
[Round "8.135"]
[White "Boulrens, Ala Eddine"]
[Black "Cori Quispe, Kevin Joel"]
[Result "1-0"]
[ECO "B22"]
[WhiteElo "2137"]
[BlackElo "2461"]
[Annotator "TA"]
[PlyCount "77"]
[EventDate "2024.09.05"]
[EventType "team-tourn"]
[EventCountry "HUN"]
[SourceTitle "playchess.com"]
[Source "ChessBase"]
[SourceQuality "1"]
[WhiteTeam "Algeria"]
[BlackTeam "Mexico"]
[WhiteTeamCountry "ALG"]
[BlackTeamCountry "MEX"]
[TimeControl "40/5400+30:1800+30"]

{[%evp 16,77,18,15,17,14,18,14,22,12,22,0,1,0,6,0,4,0,15,-12,-13,-10,-18,-11,0,0,-10,-15,-4,-31,-25,-29,0,-28,-13,-27,-26,-34,0,0,0,-29,-24,-27,-25,-63,-54,-104,107,113,443,421,475,540,552,533,517,495,463,340,449,429,1187,1128]} 1. e4 c5 2. c3 {[%cal Bc2c3,Bc3d4,Bd4e5][%mdl 32]} Nf6 3. e5 Nd5 4. Nf3 Nc6 5. d4 cxd4 6. cxd4 d6 7. Bc4 Nb6 8. Bb5 Bd7 9. Nc3 dxe5 10. dxe5 g6 11. O-O Bg7 {The position is equal.} 12. Qe2 O-O 13. h3 Qc7 14. Bf4 Rad8 15. Rac1 Be6 16. Rfd1 Nd5 17. Bg3 Nxc3 18. Rxc3 Qb6 {Strongly threatening ...Rxd1+.} 19. Bxc6 {Threatens to win with Rxd8.} bxc6 20. Rdc1 Bd5 21. b3 a5 22. Nd2 Bh6 23. R1c2 a4 24. Nc4 Qb4 25. bxa4 Be6 {Hoping for ...Qb1+. This pair of bishops is nice.} 26. Ne3 Qb1+ 27. Qf1 Qb4 28. Qe2 Qxa4 29. Rxc6 Rd4 30. Kh2 Bg5 31. Qa6 (31. f3 $15) 31... h5 $2 {[#]} (31... Ra8 $17 {keeps the pressure on.} 32. Qxa4 Raxa4 (32... Rdxa4 33. Rc7 $17)) 32. Rxe6 $16 fxe6 {[%mdl 8192] A mistake that costs the game.} (32... Bxe3 $16 {is a better chance.} 33. Rxg6+ (33. fxe3 Qxc2 34. exd4 fxe6 $11) 33... Kh7) 33. Qxe6+ $18 Kh7 34. Rc6 Rg8 {[#]} 35. Nf5 {[%mdl 512]} Qxc6 36. Qxc6 gxf5 37. Qf3 Kg6 38. Qb3 Rf8 (38... Kg7 $142 39. f4 Rxf4) 39. Qb6+ {Weighted Error Value: White=0.15 (very precise) /Black=0.34.  Loses game:     	---       	Black=1      Mistake:       	White=1     	Black=2      Inaccurate:     	White=4     	Black=3      OK:         	White=9     	Black=10     Best:        	White=1     	Black=1      Brilliant:      	White=1     	---} 1-0

[Event "45th FIDE Olympiad 2024"]
[Site "Budapest"]
[Date "2024.09.19"]
[Round "8.136"]
[White "Palma Villanueva, Miguel Tadeo"]
[Black "Bengherabi, Khalil"]
[Result "0-1"]
[ECO "B52"]
[WhiteElo "2266"]
[BlackElo "2076"]
[Annotator "RC"]
[PlyCount "72"]
[EventDate "2024.09.05"]
[EventType "team-tourn"]
[EventCountry "HUN"]
[SourceTitle "playchess.com"]
[Source "ChessBase"]
[SourceQuality "1"]
[WhiteTeam "Mexico"]
[BlackTeam "Algeria"]
[WhiteTeamCountry "MEX"]
[BlackTeamCountry "ALG"]
[TimeControl "40/5400+30:1800+30"]

1. e4 c5 2. Nf3 d6 3. Bb5+ Bd7 4. Bxd7+ Qxd7 5. O-O Nc6 6. c3 Nf6 7. Re1 g6 8. d4 cxd4 9. cxd4 Bg7 10. Nc3 O-O 11. h3 d5 12. e5 Ne8 13. Bf4 Nc7 14. Qd2 Ne6 15. Rad1 Na5 16. b3 Rfc8 17. Ne2 b6 18. Bh6 Nc6 19. h4 Rc7 20. Bxg7 Kxg7 21. h5 Rac8 22. Kh2 Ncd8 23. Rh1 Rc2 24. Qe3 Qb5 25. Rde1 Kf8 26. a4 Qb4 27. Qh6+ Ke8 28. Qxh7 gxh5 29. Qxh5 Qxb3 30. Ng5 Nxg5 31. Qxg5 Ne6 32. Qg4 Kd7 33. Kg1 Qb4 34. Kf1 Rb2 35. g3 Rcc2 36. Qf3 Qxe1+ 0-1

[Event "45th FIDE Olympiad 2024"]
[Site "Budapest"]
[Date "2024.09.19"]
[Round "8.137"]
[White "Mandizha, Farai"]
[Black "Ferreira, Jorge Viterbo"]
[Result "0-1"]
[ECO "E14"]
[WhiteElo "2371"]
[BlackElo "2535"]
[Annotator "TA"]
[PlyCount "102"]
[EventDate "2024.09.05"]
[EventType "team-tourn"]
[EventCountry "HUN"]
[SourceTitle "playchess.com"]
[Source "ChessBase"]
[SourceQuality "1"]
[WhiteTeam "Zimbabwe"]
[BlackTeam "Portugal"]
[WhiteTeamCountry "ZIM"]
[BlackTeamCountry "POR"]
[TimeControl "40/5400+30:1800+30"]

{[%evp 16,102,22,19,33,31,35,20,35,37,29,0,42,23,14,-73,-72,-62,-83,-98,-88,-126,-60,-50,-47,-53,0,-135,-143,-187,-178,-256,-272,-275,-256,-239,-208,-202,-152,-232,-108,-91,-106,-167,-59,-89,-112,-97,0,-54,-40,-38,-30,-891,-894,-924,-887,-1067,-1010,-1127,-1124,-1094,-1095,-1129,-1129,-1120,-1120,-1087,-1093,-1046,-1010,-1200,-1202,-1362,-1362,-1326,-1288,-5189,-5165,-29967,-29968,-29973,-29975,-29980,-29981,-29981,-29982,-29982,-29983]} 1. d4 Nf6 2. c4 e6 3. Nf3 Bb4+ 4. Nbd2 b6 5. a3 Bxd2+ 6. Qxd2 Bb7 7. e3 O-O 8. Be2 a5 9. b3 d6 10. Bb2 Nbd7 11. Qc2 Be4 {The position is equal.} 12. Qc3 Bb7 13. Qc2 Ne4 14. Bd3 f5 15. O-O-O (15. O-O $11) 15... c5 {[%cal Oa5a4]} 16. a4 {[#]} b5 $1 17. cxb5 (17. axb5 a4) 17... Rc8 $1 18. d5 {[#]} exd5 (18... c4 $1 $17 {[%cal Rc4d3]} 19. bxc4 (19. Bxc4 $2 Nb6 $19) 19... Bxd5) 19. Kb1 $1 $15 Qe7 {[%cal Oc5c4]} 20. Rhf1 Nb6 (20... c4 $15 21. Bxe4 (21. bxc4 dxc4 22. Bxc4+ Kh8 $17) 21... fxe4 (21... cxb3 22. Qxb3 Qxe4+ 23. Ka1 $15)) 21. Ka1 (21. Nd2 $11 {keeps the balance.}) 21... c4 $17 22. Be2 Nc5 23. Nd4 (23. bxc4 {was the only chance.} Ncxa4 (23... Nbxa4 24. Nd4 $17) 24. Ba3) 23... cxb3 $19 24. Qb1 Ncxa4 {Excellent horsemanship.} 25. Nxb3 Nxb2 26. Qxb2 Na4 27. Qd2 {[#]} (27. Qa3 $17 {was necessary.} Nc3 28. Rde1) 27... Rc3 (27... d4 $1 $19 {and Black stays clearly on top.} 28. Nxd4 d5 (28... Bxg2 29. Qa2+ d5 30. Qxa4 $16) (28... Nc3 29. Rc1 $15)) 28. Qa2 $17 Nc5 {Black is more active.} 29. Nd4 (29. Nxc5 $17 dxc5 30. Qb2) 29... Rc8 (29... a4 $19 30. Qd2 (30. Kb2 $2 Rb3+ 31. Ka1 Rb4 $19) 30... Rb3) 30. Qb2 Na4 31. Qa2 Nc5 {...a4 is the strong threat.} 32. Qb2 $1 Ne6 $36 {[%mdl 2048] Threatens to win with ...Nxd4. Black has good play.} (32... a4 {is more complex.} 33. Qxc3 Nb3+ 34. Kb2 Rxc3 35. Kxc3 Qc7+) 33. Nc6 Qf6 (33... Bxc6 34. Qxc3 Bb7 35. Qb2 $11 (35. Qxa5 $2 {perishes.} Ra8 $19)) 34. Bf3 $2 {[%mdl 8192] Now White is beyond hope.} (34. Rc1 $11 Rxc1+ (34... d4 35. exd4 Rxc1+ 36. Rxc1 $16) 35. Rxc1) 34... Bxc6 $19 35. bxc6 R8xc6 {[%cal Oc6b6] Hoping for ...Rb6!} 36. Bxd5 {[#]} Rb6 $3 {[%mdl 512]} 37. Bxe6+ Kf8 {( -> ...Ra3+)} 38. Rd4 Rxb2 39. Kxb2 Rd3 {[%cal Od3d4] Strongly threatening ...Rxd4!} 40. Ba2 Rxd4 41. exd4 Qxd4+ {[%mdl 4096] Endgame. KQ-KRB} 42. Kc2 Qe4+ 43. Kd2 Qxg2 44. Bc4 Qxh2 45. Kd3 Qf4 46. f3 h5 47. Bd5 Qe5 {Black mates.} 48. Bb3 f4 49. Bc4 d5 50. Bb5 Qe3+ 51. Kc2 Qc5+ {Weighted Error Value: White=0.62/Black=0.19 (very precise) .  Loses game:     	White=1     	---        Mistake:       	White=5     	Black=4      Inaccurate:     	White=4     	Black=2      OK:         	White=6     	Black=6      Best:        	White=1     	Black=3      Strong:       	White=2     	Black=1} 0-1

[Event "45th FIDE Olympiad 2024"]
[Site "Budapest"]
[Date "2024.09.19"]
[Round "8.138"]
[White "Galego, Luis"]
[Black "Makoto, Rodwell"]
[Result "1/2-1/2"]
[ECO "C85"]
[WhiteElo "2444"]
[BlackElo "2311"]
[Annotator "TA"]
[PlyCount "80"]
[EventDate "2024.09.05"]
[EventType "team-tourn"]
[EventCountry "HUN"]
[SourceTitle "playchess.com"]
[Source "ChessBase"]
[SourceQuality "1"]
[WhiteTeam "Portugal"]
[BlackTeam "Zimbabwe"]
[WhiteTeamCountry "POR"]
[BlackTeamCountry "ZIM"]
[TimeControl "40/5400+30:1800+30"]

{[%evp 13,80,0,0,-5,0,0,0,-16,16,10,17,17,15,18,20,15,22,10,4,7,12,18,9,6,18,13,8,10,11,0,0,0,0,0,0,0,0,0,10,8,20,18,71,57,81,0,0,0,0,0,0,0,0,0,0,0,0,0,0,0,0,0,0,0,0,0,0,0,0]} 1. e4 e5 2. Nf3 Nc6 3. Bb5 a6 4. Ba4 Nf6 5. O-O Be7 6. Bxc6 dxc6 7. Qe1 Nd7 8. Nc3 c5 9. d3 f6 10. Nd5 Bd6 11. Nh4 O-O 12. Nf5 Rf7 13. f4 exf4 14. Nxd6 cxd6 15. Bxf4 Ne5 16. b4 {[#] aiming for bxc5.} Be6 17. bxc5 dxc5 18. Bxe5 fxe5 19. Rxf7 Bxf7 20. c4 b5 21. Qc3 Qd6 22. Qa5 Bxd5 23. exd5 $11 {[%mdl 4096] Endgame. KQR-KQR} Rf8 24. h3 h6 25. Re1 Qf6 26. Qd2 {Active counter play!} bxc4 27. dxc4 Qf4 (27... Qh4 $11) 28. Qxf4 $16 Rxf4 {[#]} 29. Rxe5 (29. d6 $1 $16) 29... Rxc4 {KR-KR. The position is equal.} 30. d6 Rd4 31. Rxc5 Rxd6 32. Ra5 Rf6 33. h4 g6 34. Kh2 Kg7 35. g4 Rc6 36. Kg3 Rc3+ 37. Kf4 Rc4+ 38. Kf3 Rc3+ 39. Kf4 Rc4+ 40. Kf3 Rc3+ {Weighted Error Value: White=0.04 (flawless) /Black=0.05 (flawless) .  Mistake:       	White=1     	Black=1      Inaccurate:     	---       	Black=1      OK:         	White=14    	Black=19     Best:        	---       	Black=1} 1/2-1/2

[Event "45th FIDE Olympiad 2024"]
[Site "Budapest"]
[Date "2024.09.19"]
[Round "8.139"]
[White "Mwadzura, Roy"]
[Black "Sousa, Andre Ventura"]
[Result "0-1"]
[ECO "B92"]
[WhiteElo "2229"]
[BlackElo "2403"]
[Annotator "TA"]
[PlyCount "116"]
[EventDate "2024.09.05"]
[EventType "team-tourn"]
[EventCountry "HUN"]
[SourceTitle "playchess.com"]
[Source "ChessBase"]
[SourceQuality "1"]
[WhiteTeam "Zimbabwe"]
[BlackTeam "Portugal"]
[WhiteTeamCountry "ZIM"]
[BlackTeamCountry "POR"]
[TimeControl "40/5400+30:1800+30"]

{[%evp 18,116,18,18,1,31,27,20,23,0,0,0,9,0,0,-34,-24,-23,-17,-85,-86,-80,-87,-152,-176,-163,-161,-177,-177,-168,-175,-197,-178,-180,-179,-193,-194,-190,-191,-210,-192,-220,-189,-230,-189,-240,-189,-271,-273,-301,-230,-312,-299,-305,-304,-358,-358,-433,-458,-451,-454,-507,-435,-449,-444,-522,-504,-524,-509,-622,-536,-623,-488,-813,-858,-1277,-968,-968,-940,-1466,-1336,-1427,-1018,-1625,-1452,-1686,-1628,-1788,-1608,-1697,-1527,-2954,-3228,-2490,-2907,-4570,-4133,-2238,-2077,-1772,-1654]} 1. e4 c5 2. Nf3 d6 3. d4 cxd4 4. Nxd4 Nf6 5. Nc3 a6 6. Be2 e5 7. Nf3 Be7 8. O-O O-O 9. Bg5 Nbd7 10. a4 h6 11. Be3 Ng4 12. Bc1 Nc5 {The position is equal.} 13. Bc4 Nf6 14. Qe2 Be6 15. Rd1 {And now Bxe6 would win.} Qc7 {[%cal Oc5e4]} 16. Nd5 Nxd5 17. Bxd5 Bxd5 18. Rxd5 {[#]} (18. exd5 $11 {keeps the balance.} Rac8 19. Be3) 18... Qc6 $1 $17 {[%cal Of7f5] Black converts the advantage convincingly.} 19. b3 f5 20. Nd2 (20. Qc4 $142 Kh8 (20... Nxe4 21. Rc5+ d5 22. Rxc6 $17) 21. exf5) 20... Nxe4 21. Qc4 Nxd2 22. Qxc6 Nf3+ 23. gxf3 bxc6 24. Rd1 d5 25. Bb2 Bf6 26. Kg2 Kf7 27. Ba3 Rfd8 28. Re1 g5 29. h3 Ke6 30. Rad1 Rab8 31. Kf1 (31. Bc5 $142) 31... f4 32. Re2 (32. Bc5 $142) 32... Kf5 $19 33. Rde1 d4 34. Be7 Rd5 (34... Bxe7 $2 {too greedy.} 35. Rxe5+ Kg6 36. Rxe7 $18) 35. Bxf6 Kxf6 {[%mdl 4096] Endgame. KRR-KRR} 36. Rd2 Rc5 37. Ke2 Rc3 {Black is clearly winning.} 38. Rh1 h5 39. Ra1 Rh8 {[%cal Og5g4] Strongly threatening ...g4!} 40. Rg1 c5 41. Rh1 Rc8 42. Ra1 a5 43. Rb1 Kf5 44. Rb2 c4 {Dodges Rd3} 45. Rd1 (45. bxc4 $142 R3xc4 (45... R8xc4 $2 46. Rb8 $19) 46. Ra2) 45... Rb8 {White must now prevent ...Rb4.} 46. Rdb1 cxb3 47. cxb3 Rb4 48. h4 gxh4 49. Rh1 Rbxb3 50. Rxb3 Rxb3 51. Rxh4 {KR-KR} Kg5 52. Rh1 Ra3 {[#] aiming for ...Ra2+.} 53. Rg1+ Kf5 54. Rh1 Rxa4 55. Rxh5+ Ke6 56. Rh8 Ra2+ 57. Kd3 Rxf2 58. Re8+ Kd6 {Weighted Error Value: White=0.78/Black=0.27 (precise) .  Mistake:       	White=5     	---        Inaccurate:     	White=3     	---        OK:         	White=9     	Black=17     Best:        	White=1     	---        Strong:       	---       	Black=1} 0-1

[Event "45th FIDE Olympiad 2024"]
[Site "Budapest"]
[Date "2024.09.19"]
[Round "8.140"]
[White "Barria Santos, Jose Guilherme"]
[Black "Mapuranga, Vitalis"]
[Result "1-0"]
[ECO "B11"]
[WhiteElo "2411"]
[BlackElo "2013"]
[Annotator "TA"]
[PlyCount "111"]
[EventDate "2024.09.05"]
[EventType "team-tourn"]
[EventCountry "HUN"]
[SourceTitle "playchess.com"]
[Source "ChessBase"]
[SourceQuality "1"]
[WhiteTeam "Portugal"]
[BlackTeam "Zimbabwe"]
[WhiteTeamCountry "POR"]
[BlackTeamCountry "ZIM"]
[TimeControl "40/5400+30:1800+30"]

{[%evp 13,111,8,34,3,11,0,0,0,26,-35,26,26,17,18,12,16,17,16,5,0,14,0,11,14,0,4,16,0,49,44,38,30,35,29,31,27,39,0,-8,-36,0,-23,-10,-21,-18,-20,-13,-60,-50,-60,0,0,0,0,0,0,67,57,68,59,103,105,108,117,102,100,129,90,74,96,140,133,134,135,173,173,173,185,185,185,418,397,455,448,648,654,642,650,622,610,29955,9766,29983,29984,29984,29985,29985,29986,29992,237]} 1. e4 c6 2. Nc3 d5 3. Nf3 Bg4 4. h3 Bxf3 5. Qxf3 e6 6. Be2 Nf6 7. O-O Nbd7 8. exd5 cxd5 9. Qg3 Rc8 10. d4 {The position is equal.} Qb6 11. Bd3 ({White should try} 11. Rd1 $11) 11... a6 (11... Qxd4 $15 12. Be3 Qb4 13. Bxa7 Qxb2) 12. Ne2 $11 g6 13. c3 Bg7 14. a4 {[%cal Ba2a4,Ba4a5][%mdl 32]} O-O 15. a5 Qd8 16. Bg5 h6 17. Bd2 Re8 18. Qh4 Ne4 19. Qxd8 Rexd8 20. Be3 f5 (20... Nd6 $11 {is superior.}) 21. f3 Nd6 22. Nf4 Kf7 23. Rfe1 Re8 24. Bc2 g5 25. Nh5 (25. Nd3 $14 {deserves consideration.}) 25... Bh8 26. f4 (26. Bf2 {is more complex.} f4 27. h4 Nc4 28. Ba4) 26... Rg8 27. fxg5 hxg5 28. g4 Nf6 29. Nxf6 Bxf6 30. Kg2 (30. Re2 $11) 30... f4 $15 31. Bf2 Rc7 (31... Nc4 $15) 32. Re2 $11 Rh8 33. Rae1 Re7 34. Bd3 Rc8 (34... Ree8 $11) 35. Kf3 $14 {[%cal Oh3h4]} Nc4 {[#]} 36. h4 $1 Nxa5 {[#]} (36... gxh4 37. Kxf4) 37. hxg5 $1 Bxg5 38. Re5 Bf6 39. Rh5 {[%cal Og4g5][%mdl 1024] White has strong compensation. White is more active.} Nc4 40. g5 {[%cal Bg4g5,Bg5g6][%mdl 32]} (40. Kxf4 Nxb2 41. Bb1 Rxc3 42. Rh7+ Kf8 $17) 40... Bg7 41. g6+ (41. Kxf4 Nxb2 42. g6+ Kg8 $15) 41... Kf8 42. Re2 $36 {[%mdl 2048] White is really pushing.} (42. Kxf4 Nxb2 43. Bf5 exf5 $15) 42... e5 {Hoping for ...e4+.} 43. Bxc4 dxc4 44. dxe5 {[%cal Oe5e6] Threatens to win with e6!} (44. Rf5+ Ke8 $16) 44... Re6 45. Kxf4 Rxg6 46. Kf5 Rcc6 {[#]} (46... Rg2) 47. Rd2 $1 $18 Ke8 48. Bh4 Kf7 (48... Bxe5 $142 49. Rd8+ (49. Kxe5 Rc5+ 50. Rd5 Rxd5+ 51. Kxd5 Rg2 $18) 49... Kf7 50. Kxe5 Rc5+ 51. Rd5 Rxd5+ 52. Kxd5 Rb6) 49. Rd7+ Kg8 50. Rg5 (50. Rxb7 Bxe5 51. Bf2 (51. Kxe5 $2 {too greedy.} Rc5+ 52. Ke4 Rxh5 $19) 51... Bxc3 $11) 50... Rxg5+ 51. Bxg5 {[%cal Oe5e6] Black must now prevent e6! KRB-KRB} (51. Kxg5 Bxe5 52. Kf5 Bc7 $11) 51... Rc5 52. Kg6 ({And not} 52. Rxb7 Rxe5+ 53. Kf4 Rc5 $17) (52. Bf6 $142 Bxf6 53. Kxf6 Rc8 54. e6 (54. Rxb7 Rf8+ 55. Kg6 a5 $18) 54... Rc6 55. Rd8+ (55. Rxb7 Rd6 $18) 55... Kh7 56. Ke5 Rc5+ 57. Kd4) 52... Rc6+ 53. Bf6 {White mates.} Bxf6 54. exf6 {[%cal Rd7d8]} Rc8 55. Rg7+ Kh8 56. Rh7+ {Weighted Error Value: White=0.08 (flawless) /Black=0.42.  Mistake:       	White=3     	Black=6      Inaccurate:     	White=2     	Black=4      OK:         	White=23    	Black=19     Best:        	White=1     	Black=1      Strong:       	White=2     	---} 1-0

[Event "45th FIDE Olympiad 2024"]
[Site "Budapest"]
[Date "2024.09.19"]
[Round "8.141"]
[White "Kantor, Gergely"]
[Black "Miguel, Sergio"]
[Result "1/2-1/2"]
[ECO "C54"]
[WhiteElo "2537"]
[BlackElo "2241"]
[Annotator "RC"]
[PlyCount "142"]
[EventDate "2024.09.05"]
[EventType "team-tourn"]
[EventCountry "HUN"]
[SourceTitle "playchess.com"]
[Source "ChessBase"]
[SourceQuality "1"]
[WhiteTeam "Hungary C"]
[BlackTeam "Angola"]
[BlackTeamCountry "ANG"]
[TimeControl "40/5400+30:1800+30"]

1. e4 e5 2. Nf3 Nc6 3. Bc4 Nf6 4. d3 Bc5 5. c3 d6 6. Bg5 h6 7. Bh4 a6 8. O-O Ba7 9. Nbd2 Na5 10. Bd5 c6 11. Bxf7+ Kxf7 12. b4 Be6 13. Bxf6 gxf6 14. Nh4 h5 15. Kh1 Ke8 16. f4 Kd7 17. fxe5 fxe5 18. Ng6 Rh7 19. Nf8+ Qxf8 20. Rxf8 Rxf8 21. bxa5 Rf2 22. Rb1 Kc8 23. Nc4 Bxc4 24. dxc4 Kc7 25. c5 Bxc5 26. Qb3 b5 27. axb6+ Kb7 28. Qg8 Rhf7 29. h4 R2f4 30. g3 Rf2 31. a4 a5 32. Qg6 R2f6 33. Qxh5 Rg7 34. Rb2 Rfg6 35. Rg2 Rxg3 36. Rxg3 Rxg3 37. Qf7+ Kxb6 38. h5 Rxc3 39. Kg2 Be3 40. Qf6 Kc5 41. Qh4 Rc4 42. Kf3 Bd2 43. h6 Bxh6 44. Qxh6 Rxa4 45. Qc1+ Kb6 46. Qg5 Rd4 47. Qd8+ Kb5 48. Qb8+ Ka4 49. Qe8 Kb5 50. Ke3 a4 51. Qd7 Kb6 52. Qd8+ Kb5 53. Qb8+ Kc4 54. Qa8 Kb3 55. Qb7+ Ka2 56. Qxc6 Kb3 57. Qb5+ Kc3 58. Qa5+ Kb3 59. Qb6+ Kc3 60. Qc6+ Kb3 61. Qb7+ Kc3 62. Qc7+ Kb3 63. Qb8+ Kc3 64. Qc7+ Kb3 65. Qf7+ Kb2 66. Qb7+ Kc3 67. Qc8+ Kb3 68. Qb8+ Kc3 69. Qa8 Kb3 70. Qg8+ Kb2 71. Qb8+ Kc3 1/2-1/2

[Event "45th FIDE Olympiad 2024"]
[Site "Budapest"]
[Date "2024.09.19"]
[Round "8.142"]
[White "Silva, David"]
[Black "Krstulovic, Alex"]
[Result "1-0"]
[ECO "B10"]
[WhiteElo "2363"]
[BlackElo "2452"]
[Annotator "TA"]
[PlyCount "69"]
[EventDate "2024.09.05"]
[EventType "team-tourn"]
[EventCountry "HUN"]
[SourceTitle "playchess.com"]
[Source "ChessBase"]
[SourceQuality "1"]
[WhiteTeam "Angola"]
[BlackTeam "Hungary C"]
[WhiteTeamCountry "ANG"]
[TimeControl "40/5400+30:1800+30"]

{[%evp 9,69,0,10,0,12,11,17,4,19,0,6,-8,0,-16,0,0,0,0,2,0,0,-2,-16,-14,-15,-7,10,0,7,7,21,11,17,12,32,-79,-110,-124,-127,-135,-139,-160,-149,-210,-182,-214,-149,-149,0,-195,0,-148,-63,-73,-59,-62,-8,-4,29995,0,29996,29997]} 1. e4 c6 2. Nf3 d5 3. exd5 cxd5 4. Ne5 a6 5. d4 Nc6 6. c3 Nxe5 7. dxe5 Bf5 8. Nd2 {[%cal Bb1d2,Bd2f3,Bf3d4][%mdl 32] The position is equal.} Qd7 9. Nf3 e6 10. Bd3 Ne7 11. O-O Rc8 12. Nd4 Bxd3 13. Qxd3 Nc6 14. Qg3 g6 15. Bg5 Bg7 16. Nf3 Qc7 17. Rfe1 Ne7 18. Qh3 h6 19. Bf6 Kf8 20. Nd4 Nc6 (20... Ng8 {simplifies} 21. Bxg7+ Kxg7 22. Rad1 Ne7) 21. Rad1 Nxe5 22. Bxg7+ (22. Qh4 $14 {was the only good move.} Nd7 23. Bxg7+ Kxg7 24. Rxe6) 22... Kxg7 $17 23. Qh4 {[%cal Od4e6]} Rhe8 24. Re3 Nc4 {[%csl LRb2,LRe3]} 25. Rh3 {[#]} h5 (25... Nxb2 $2 26. Qxh6+ Kf6 27. Rf3+ Ke7 28. Qg7 $18) 26. Re1 (26. Rb1 $17) 26... Qd8 27. Qg3 Qd6 28. Qg5 Qd8 (28... Nxb2 $6 29. g4 Qd8 30. Qc1 $15) (28... f6 $17 29. Qh4 Kf7 (29... Nxb2 30. g4 $11) (29... e5 $2 30. Nf5+ gxf5 31. Qxh5 $19)) 29. Qg3 $19 Qd6 (29... Qf6 $19 30. Rxh5 Nxb2) 30. Qg5 $17 Nxb2 (30... f6 $17 31. Qh4 e5 (31... Nxb2 32. g4 $11)) 31. g4 $15 Qd8 32. Qc1 e5 ({Of course not} 32... hxg4 33. Qh6+ Kf6 34. Qf4+ Kg7 35. Nf5+ (35. Qh6+ Kf6 $11) 35... exf5 (35... gxf5 36. Qh6+ Kg8 37. Qh8#) 36. Qh6+ Kf6 37. Rxe8 (37. Qh4+ Kg7 $11) 37... Qxe8 38. Qh4+ Kg7 39. Qh6+ Kf6 40. Qh4+ Kg7 41. Qh7+ Kf6 42. Qh4+ $11) (32... Nc4 $1 $15 33. gxh5 g5 (33... Rh8 $2 34. Rxe6 $18)) 33. Rxh5 $1 $11 {Threatening mate with Qh6+.} Qf6 $2 {[%mdl 8192]} ({Stronger than} 33... gxh5 34. Nf5+ Kg8 35. Qh6 (35. Qxb2 $2 {loses.} Qf6 $19) (35. Qxb2 $2 Qf6 $19)) (33... Rh8 $11 34. Ne6+ fxe6 35. Rxh8 Qxh8 36. Qxb2 Rc4 37. Qxb7+ Kf6 38. g5+ Kxg5) 34. Qh6+ Kg8 {[#]} 35. Nf5 $1 {[%mdl 512] White used his chance.   Weighted Error Value: White=0.15 (very precise) /Black=0.42.  Loses game:     	---       	Black=2      Mistake:       	White=2     	Black=4      Inaccurate:     	---       	Black=1      OK:         	White=5     	Black=12     Best:        	White=2     	---        Strong:       	White=1     	---} 1-0

[Event "45th FIDE Olympiad 2024"]
[Site "Budapest"]
[Date "2024.09.19"]
[Round "8.143"]
[White "Karacsonyi, Gellert"]
[Black "Junior, Domingos"]
[Result "1/2-1/2"]
[ECO "B15"]
[WhiteElo "2403"]
[BlackElo "2183"]
[Annotator "TA"]
[PlyCount "103"]
[EventDate "2024.09.05"]
[EventType "team-tourn"]
[EventCountry "HUN"]
[SourceTitle "playchess.com"]
[Source "ChessBase"]
[SourceQuality "1"]
[WhiteTeam "Hungary C"]
[BlackTeam "Angola"]
[BlackTeamCountry "ANG"]
[TimeControl "40/5400+30:1800+30"]

{[%evp 12,103,34,33,41,27,32,36,40,29,28,22,23,31,40,10,14,17,10,8,9,2,2,8,0,0,0,0,0,0,0,0,0,-17,-11,-14,-14,-11,-16,-27,-28,-8,0,0,0,0,0,0,0,0,0,0,0,0,0,-3,-2,-20,0,-6,0,-25,0,0,0,-15,0,0,0,0,0,-8,0,0,0,0,0,0,0,0,0,0,0,0,0,0,0,0,0,0,0,0,0,0]} 1. e4 c6 2. d4 d5 3. Nc3 dxe4 4. Nxe4 Nf6 5. Nxf6+ exf6 6. c3 Bf5 7. Ne2 Bd6 8. Ng3 Bg6 9. Qe2+ Qe7 {White is slightly better.} 10. Qxe7+ Kxe7 11. f4 Re8 12. Kf2 Kf8 13. Kf3 {[#] Strongly threatening f5.} Bc2 14. Be3 {Hoping for Rc1.} f5 15. Rc1 Be4+ 16. Nxe4 fxe4+ 17. Kf2 Nd7 18. c4 f5 19. Be2 Nf6 20. h3 h5 21. g3 Kf7 22. Rc3 {[%cal Bc1c3,Bc3b3,Bb3b7][%mdl 32]} Red8 23. b4 a5 ({Don't play} 23... Bxb4 24. Rb3 a5 25. c5 $16 (25. a3 Bd6 $18)) 24. bxa5 Rxa5 25. Rb3 Rxa2 {[%cal Ob7b5] White must now prevent ...b5!} 26. Rxb7+ Rd7 27. Rhb1 Ke7 {[%cal Oh5h4]} 28. Kf1 {[%cal Od4d5]} Ra3 29. Kf2 {[%cal Od4d5]} Ra2 {[%cal Oh5h4]} 30. d5 c5 ({Much worse is} 30... cxd5 31. c5 Bc7 32. c6 $16) 31. Rxd7+ Nxd7 32. Bc1 g6 33. Rb7 Kd8 34. Rb3 Rc2 35. Be3 Kc7 36. Ke1 Nb6 37. Kd1 {The position is equal.} Ra2 38. Bc1 Ra4 39. Rc3 Be7 40. Ra3 Bf6 41. g4 hxg4 42. hxg4 Rxa3 43. Bxa3 $11 {[%mdl 4096] Endgame. KBB-KBN} Bd4 44. gxf5 gxf5 45. Bc1 Nc8 46. Kc2 Nd6 47. Bd2 Kb6 48. Kb3 Ka6 49. Ka4 Bb2 50. Be3 Kb6 51. Kb3 Bd4 52. Bd2 {Weighted Error Value: White=0.03 (flawless) /Black=0.03 (flawless) .  Inaccurate:     	White=1     	---        OK:         	White=23    	Black=17} 1/2-1/2